bitfinex/quotes_SOLUSD_20250904
["timestamp","ask_amount","ask_price","bid_price","bid_amount"]
[1757015142396,26.08,202.87,202.81,14.92]
[1757015142579,0.14216157,202.86,202.81,14.92]
[1757015143096,0.08,202.85,202.81,0.12]
[1757015143304,0.14216157,202.82,202.81,0.12]
[1757015145695,26.0,202.83,202.81,0.12]
[1757015147602,0.14216157,202.82,202.81,0.12]
[1757015151501,0.17216157,202.82,202.81,0.12]
[1757015151682,0.17216157,202.82,202.81,0.83]
[1757015151884,0.17216157,202.82,202.81,0.12]
[1757015152602,26.0,202.83,202.81,0.12]
[1757015154403,0.14216157,202.82,202.81,0.12]
[1757015155389,2.29191038,202.83,202.81,0.12]
[1757015155990,0.03,202.85,202.81,0.12]
[1757015157396,26.0,202.83,202.81,0.12]
[1757015157597,0.14216157,202.82,202.81,0.12]
[1757015160717,0.14216157,202.82,202.81,0.83]
[1757015161906,0.14216157,202.82,202.81,0.12]
[1757015163012,26.14216157,202.82,202.81,0.12]
[1757015172500,40.97216157,202.82,202.81,0.12]
[1757015172701,26.14216157,202.82,202.81,0.12]
[1757015175322,26.14216157,202.82,202.81,0.83]
[1757015175633,26.14216157,202.82,202.81,0.12]
[1757015178507,20.14216157,202.82,202.81,0.12]
[1757015181207,34.97216157,202.82,202.8,0.12]
[1757015181612,147.87216157,202.81,202.8,0.12]
[1757015181820,53.17216157,202.81,202.8,0.12]
[1757015182216,38.34216157,202.81,202.8,0.12]
[1757015186512,38.34216157,202.81,202.76,0.12]
[1757015186513,158.66,202.78,202.76,0.12]
[1757015186839,0.14216157,202.77,202.76,0.12]
[1757015187210,0.14216157,202.77,202.76,0.84]
[1757015188915,0.43816157,202.77,202.76,0.84]
[1757015189725,26.43816157,202.77,202.76,0.84]
[1757015192220,0.43816157,202.77,202.76,0.84]
[1757015193733,26.43816157,202.77,202.76,0.84]
[1757015197721,107.50380936,202.77,202.76,0.12]
[1757015199331,107.56380936,202.77,202.76,0.12]
[1757015200635,69.30380936,202.77,202.76,0.12]
[1757015200832,107.56380936,202.77,202.76,0.12]
[1757015201240,132.66,202.73,202.71,0.12]
[1757015201438,26.14216157,202.72,202.71,0.12]
[1757015202847,26.14216157,202.72,202.71,0.84]
[1757015203829,26.14216157,202.72,202.71,0.12]
[1757015204135,30.00369804,202.72,202.71,0.84]
[1757015204452,4.00369804,202.72,202.71,0.12]
[1757015204831,0.14216157,202.69,202.62,13.59559401]
[1757015205348,0.14216157,202.69,202.68,0.12]
[1757015205532,0.14216157,202.69,202.62,13.21559401]
[1757015205732,0.14216157,202.69,202.62,12.21559401]
[1757015206040,0.14216157,202.69,202.66,0.12]
[1757015206838,0.14216157,202.71,202.66,0.72]
[1757015207152,0.14216157,202.71,202.67,0.72]
[1757015207354,9.96716377,202.68,202.67,0.72]
[1757015207552,3.86153647,202.72,202.67,0.72]
[1757015207731,8.52716377,202.76,202.68,13.59559401]
[1757015207933,8.52716377,202.75,202.69,0.66]
[1757015208147,8.52716377,202.74,202.69,0.66]
[1757015208348,0.14216157,202.73,202.69,0.66]
[1757015208539,0.14216157,202.7,202.69,0.66]
[1757015209258,26.0,202.71,202.69,0.66]
[1757015209438,26.0,202.71,202.7,0.66]
[1757015209760,26.0,202.71,202.7,14.25559401]
[1757015210143,4.12288231,202.73,202.7,14.25559401]
[1757015210347,26.0,202.72,202.71,0.66]
[1757015210951,8.52716377,202.74,202.72,13.59559401]
[1757015211156,8.52716377,202.74,202.72,0.66]
[1757015211950,26.0,202.71,202.7,13.59559401]
[1757015212153,26.0,202.71,202.7,14.25559401]
[1757015215248,27.97326229,202.71,202.7,14.25559401]
[1757015215942,1.9730896,202.73,202.7,0.66]
[1757015216152,1.9730896,202.73,202.71,13.59559401]
[1757015216461,26.0,202.72,202.71,13.59559401]
[1757015217236,26.0,202.71,202.69,13.59559401]
[1757015217438,1.97335964,202.7,202.69,14.25559401]
[1757015217740,1.97335964,202.7,202.68,13.59559401]
[1757015218338,26.0,202.71,202.69,0.66]
[1757015218542,8.52716377,202.74,202.69,0.66]
[1757015218743,34.52716377,202.74,202.69,0.66]
[1757015219238,26.0,202.74,202.71,13.59559401]
[1757015219560,26.0,202.74,202.68,13.59559401]
[1757015219739,26.0,202.74,202.71,0.66]
[1757015219941,27.97299181,202.74,202.68,13.59559401]
[1757015220136,0.03,202.78,202.69,0.66]
[1757015220357,0.03,202.78,202.69,5.27261045]
[1757015220559,26.0,202.77,202.71,13.59559401]
[1757015220850,26.0,202.77,202.73,13.59559401]
[1757015221155,0.03,202.78,202.75,13.59559401]
[1757015221555,0.03,202.78,202.77,13.59559401]
[1757015221955,0.03,202.78,202.75,13.59559401]
[1757015222166,0.03,202.78,202.77,0.66]
[1757015222353,0.03,202.78,202.77,14.25559401]
[1757015222742,0.03,202.78,202.77,53.01559401]
[1757015223041,0.03,202.78,202.77,14.25559401]
[1757015223243,0.326,202.78,202.77,14.25559401]
[1757015223456,0.326,202.78,202.77,52.99559401]
[1757015224156,0.326,202.78,202.77,62.53990047]
[1757015224546,0.326,202.78,202.77,19.18729002]
[1757015224744,0.326,202.78,202.77,57.92729002]
[1757015225147,0.326,202.78,202.77,62.53990047]
[1757015225460,0.326,202.78,202.77,52.99559401]
[1757015225661,0.326,202.78,202.77,57.92729002]
[1757015226360,0.326,202.78,202.77,62.68206204]
[1757015226557,0.03,202.81,202.78,13.73775558]
[1757015226761,0.03,202.81,202.8,13.59559401]
[1757015227242,0.03,202.81,202.8,14.25559401]
[1757015227443,0.03,202.81,202.8,57.92656047]
[1757015227643,0.03,202.81,202.8,14.25559401]
[1757015228153,0.03,202.81,202.77,13.59559401]
[1757015228351,0.03,202.81,202.8,0.66]
[1757015228767,0.03,202.81,202.8,14.25559401]
[1757015229264,0.03,202.81,202.8,52.31559401]
[1757015229654,0.03,202.81,202.8,52.97559401]
[1757015230048,0.03,202.81,202.8,13.59559401]
[1757015230247,0.03,202.81,202.8,52.31559401]
[1757015231268,0.03,202.81,202.8,52.97559401]
[1757015235368,0.03,202.81,202.8,54.9527089]
[1757015235772,0.03,202.81,202.8,52.25559401]
[1757015236957,0.03,202.81,202.8,52.91559401]
[1757015238463,0.03,202.81,202.8,57.84656047]
[1757015238867,0.03,202.81,202.8,64.57844738]
[1757015239065,0.03,202.83,202.82,0.14216157]
[1757015239381,0.03,202.83,202.82,56.97036603]
[1757015239561,0.03,202.83,202.82,57.64036603]
[1757015240167,0.03,202.83,202.82,62.57084625]
[1757015241286,0.03,202.83,202.82,64.54757033]
[1757015241584,0.03,202.83,202.82,55.00447966]
[1757015242082,0.03,202.83,202.82,15.57231809]
[1757015242274,0.03,202.83,202.82,54.19231809]
[1757015242582,0.03,202.83,202.82,54.86231809]
[1757015243283,0.03,202.83,202.82,59.61709011]
[1757015243491,0.03,202.83,202.82,64.54757033]
[1757015244784,0.03,202.83,202.82,21.31495988]
[1757015244966,0.03,202.83,202.82,54.98447966]
[1757015245365,0.03,202.83,202.82,59.91495988]
[1757015245583,0.03,202.83,202.82,64.52757033]
[1757015246097,0.03,202.83,202.82,65.02061835]
[1757015246770,0.03,202.85,202.84,0.14216157]
[1757015246979,0.03,202.85,202.84,57.42336543]
[1757015247188,0.03,202.85,202.84,58.09336543]
[1757015248166,0.03,202.85,202.84,63.02335951]
[1757015248891,0.03,202.85,202.84,64.99969291]
[1757015249583,0.03,202.85,202.84,64.98778823]
[1757015249780,0.03,202.87,202.85,13.59559401]
[1757015249973,0.03,202.87,202.86,52.64854481]
[1757015250175,0.03,202.87,202.86,57.39141215]
[1757015250374,0.03,202.87,202.86,62.66211792]
[1757015251500,0.03,202.87,202.86,67.59162595]
[1757015252473,4.80070577,202.92,202.87,13.73775558]
[1757015252685,0.2,202.92,202.9,0.14216157]
[1757015252886,0.2,202.92,202.91,52.25775558]
[1757015253086,0.2,202.92,202.91,56.88846135]
[1757015253494,0.2,202.92,202.91,61.81675468]
[1757015254301,4.80070577,202.92,202.91,56.88846135]
[1757015254899,4.80070577,202.92,202.91,18.36846135]
[1757015255095,4.80070577,202.92,202.91,56.88846135]
[1757015256310,4.80070577,202.92,202.91,18.22629978]
[1757015256477,5.52070577,202.92,202.91,13.59559401]
[1757015256677,10.12141154,202.92,202.78,0.67]
[1757015256979,4.60070577,202.84,202.79,69.81070577]
[1757015257197,4.60070577,202.84,202.8,14.40775558]
[1757015257402,4.60070577,202.84,202.82,13.73775558]
[1757015257601,4.60070577,202.84,202.83,52.11559401]
[1757015257894,4.60070577,202.84,202.83,56.83629978]
[1757015258898,0.72,202.86,202.83,56.83629978]
[1757015259201,0.72,202.85,202.84,13.59559401]
[1757015260314,5.32070577,202.85,202.84,13.59559401]
[1757015261009,4.60070577,202.85,202.84,13.59559401]
[1757015261183,5.32070577,202.85,202.84,13.59559401]
[1757015262207,5.32070577,202.85,202.84,52.25559401]
[1757015263190,5.32070577,202.85,202.84,13.59559401]
[1757015263496,0.72,202.85,202.84,52.25559401]
[1757015263685,5.32070577,202.85,202.84,52.25559401]
[1757015264782,0.72,202.85,202.84,52.25559401]
[1757015264982,5.32070577,202.85,202.84,52.25559401]
[1757015267906,5.32070577,202.85,202.84,52.37559401]
[1757015269494,0.72,202.85,202.84,52.37559401]
[1757015270205,3.66657819,202.85,202.84,52.37559401]
[1757015270382,0.72,202.85,202.84,52.37559401]
[1757015270587,15.02762881,202.92,202.84,52.37559401]
[1757015270588,0.72,202.87,202.85,13.59559401]
[1757015270787,26.0,202.89,202.87,13.59559401]
[1757015271008,26.0,202.89,202.88,52.35559401]
[1757015271511,26.72,202.89,202.88,52.35559401]
[1757015271896,0.72,202.89,202.88,52.35559401]
[1757015272093,3.66657819,202.89,202.88,52.35559401]
[1757015275087,3.69657819,202.89,202.88,52.35559401]
[1757015275489,0.03,202.89,202.88,52.35559401]
[1757015276012,2.97657819,202.89,202.88,52.35559401]
[1757015276699,2.97657819,202.89,202.88,55.3321722]
[1757015278509,2.97657819,202.89,202.88,52.35559401]
[1757015279902,2.97657819,202.89,202.88,56.0121722]
[1757015280307,2.97657819,202.89,202.88,55.3321722]
[1757015280521,2.97657819,202.89,202.88,13.59559401]
[1757015280708,2.97657819,202.89,202.88,52.27559401]
[1757015281691,2.97657819,202.89,202.88,55.2521722]
[1757015281887,0.03,202.89,202.88,56.07433377]
[1757015282115,0.03,202.89,202.88,64.44283624]
[1757015284510,0.2,202.92,202.89,13.73775558]
[1757015284694,0.2,202.92,202.91,16.5421722]
[1757015285094,0.2,202.92,202.91,19.1979199]
[1757015286130,0.2,202.92,202.91,24.2683748]
[1757015286297,0.03,202.93,202.92,16.68433377]
[1757015286498,0.03,202.93,202.92,56.49713881]
[1757015287293,0.03,202.93,202.92,61.42518927]
[1757015287525,1e-08,202.94,202.93,33.73775558]
[1757015287696,1e-08,202.94,202.93,37.36433377]
[1757015289004,1e-08,202.94,202.93,39.34556319]
[1757015289204,1e-08,202.94,202.93,80.91214138]
[1757015290221,0.03,203.0,202.93,80.91214138]
[1757015290222,0.03,203.0,202.97,13.73775558]
[1757015290405,0.03,203.0,202.98,55.79699314]
[1757015290727,0.03,203.0,202.98,56.47699314]
[1757015290895,0.03,203.0,202.98,55.50538224]
[1757015291220,0.03,203.0,202.98,58.45196043]
[1757015291523,0.03,203.0,202.98,63.37855418]
[1757015293617,0.03,203.0,202.98,62.69855418]
[1757015294514,0.03,203.0,202.98,16.20538224]
[1757015294706,0.75,202.99,202.98,54.33272287]
[1757015295623,3.69657819,202.99,202.98,54.1905613]
[1757015295821,3.69657819,202.99,202.98,54.33272287]
[1757015295997,3.69657819,202.99,202.98,13.59559401]
[1757015296203,3.69657819,202.99,202.98,52.21559401]
[1757015296599,3.69657819,202.99,202.98,13.59559401]
[1757015296813,3.69657819,202.99,202.98,52.21559401]
[1757015297911,3.69657819,202.99,202.98,13.59559401]
[1757015298109,3.69657819,202.99,202.98,52.21559401]
[1757015298510,3.69657819,202.99,202.92,11.81631276]
[1757015298715,26.0,202.97,202.93,13.59559401]
[1757015298901,0.67,202.96,202.93,52.21559401]
[1757015299106,0.67,202.95,202.93,52.21559401]
[1757015299317,0.67,202.94,202.89,14.82030381]
[1757015299523,0.67,202.93,202.9,52.21559401]
[1757015299720,0.67,202.92,202.9,13.59559401]
[1757015300015,3.61657819,202.91,202.9,13.59559401]
[1757015300208,3.61657819,202.91,202.9,52.19559401]
[1757015301502,0.67,202.91,202.9,52.19559401]
[1757015301703,3.61657819,202.91,202.9,52.19559401]
[1757015302615,0.67,202.93,202.9,52.19559401]
[1757015302818,2.94657819,202.91,202.9,52.19559401]
[1757015303033,3.61657819,202.91,202.9,52.19559401]
[1757015305017,0.67,202.91,202.9,52.19559401]
[1757015305220,3.61657819,202.91,202.9,52.19559401]
[1757015306798,26.0,202.97,202.9,52.19559401]
[1757015307000,0.67,202.96,202.9,52.19559401]
[1757015307219,0.67,202.98,202.93,0.14216157]
[1757015307404,2.94657819,202.96,202.95,13.59559401]
[1757015307610,3.61657819,202.97,202.95,13.59559401]
[1757015307811,2.94657819,202.97,202.96,52.19559401]
[1757015308020,0.03,202.99,202.97,13.59559401]
[1757015308219,0.03,202.99,202.98,52.17559401]
[1757015308729,0.03,202.99,202.98,55.1521722]
[1757015310308,0.03,202.99,202.98,16.5721722]
[1757015310625,0.03,202.99,202.98,55.1721722]
[1757015312035,2.97657819,202.99,202.98,55.1721722]
[1757015313445,0.03,202.99,202.98,55.1721722]
[1757015313618,0.03,202.99,202.98,55.31433377]
[1757015315820,0.03,202.99,202.98,64.39016508]
[1757015316214,0.03,202.99,202.98,60.73358689]
[1757015316420,0.03,202.99,202.98,55.80699314]
[1757015316812,0.03,202.99,202.98,60.73358689]
[1757015317333,0.03,202.99,202.98,55.80699314]
[1757015317828,0.03,202.99,202.98,17.20699314]
[1757015318048,2.97657819,202.99,202.98,55.29433377]
[1757015318243,0.7,202.99,202.98,55.29433377]
[1757015318540,2.97657819,202.99,202.98,55.29433377]
[1757015318843,0.03,202.99,202.98,55.29433377]
[1757015319033,0.03,202.99,202.98,56.49699314]
[1757015319244,0.03,202.99,202.98,55.78699314]
[1757015319532,0.03,202.99,202.98,56.49699314]
[1757015320032,0.03,203.0,202.98,56.49699314]
[1757015320033,0.03,203.0,202.99,13.73775558]
[1757015320224,0.03,203.0,202.99,17.39433377]
[1757015320933,0.03,203.0,202.99,19.37410663]
[1757015321114,0.03,203.0,202.99,22.32068482]
[1757015321732,0.03,203.0,202.99,19.37410663]
[1757015321932,0.03,203.0,202.99,22.32068482]
[1757015322739,0.03,203.01,203.0,16.68433377]
[1757015322923,0.03,203.01,203.0,56.4669446]
[1757015323327,0.03,203.01,203.0,14.94036641]
[1757015323525,0.03,203.01,203.0,53.52036641]
[1757015323720,0.03,203.01,203.0,13.73775558]
[1757015324040,0.03,203.01,203.0,52.33775558]
[1757015324524,0.03,203.01,203.0,13.73775558]
[1757015324839,0.03,203.01,203.0,52.33775558]
[1757015325525,0.03,203.01,203.0,13.73775558]
[1757015325720,3.64657819,203.01,203.0,13.59559401]
[1757015325919,3.64657819,203.01,203.0,52.17559401]
[1757015326323,3.64657819,203.01,203.0,13.59559401]
[1757015326528,3.64657819,203.01,203.0,52.17559401]
[1757015327635,15.43289095,203.01,203.0,52.17559401]
[1757015327950,3.64657819,203.01,203.0,52.17559401]
[1757015329429,5.29644309,203.01,203.0,52.17559401]
[1757015329942,5.29644309,203.01,203.0,52.31775558]
[1757015329943,0.03,203.01,203.0,52.31775558]
[1757015330123,0.03,203.01,203.0,57.61419867]
[1757015330442,4.62644309,203.01,203.0,57.61419867]
[1757015330820,4.62644309,203.01,203.0,18.8920371]
[1757015331019,5.33644309,203.01,203.0,18.8920371]
[1757015331435,5.33644309,203.01,203.0,52.17559401]
[1757015331739,9.93288618,203.01,203.0,52.17559401]
[1757015332523,9.93288618,203.01,203.0,13.59559401]
[1757015332722,9.93288618,203.01,203.0,52.15559401]
[1757015333634,35.93288618,203.01,203.0,38.56]
[1757015333834,35.93288618,203.01,203.0,26.68435547]
[1757015334538,35.93288618,203.01,203.0,13.08876146]
[1757015335043,26.0,202.99,202.98,38.56]
[1757015335225,31.30644309,202.99,202.98,38.56]
[1757015335644,31.30644309,202.99,202.98,52.15559401]
[1757015336142,31.30644309,202.99,202.94,0.12]
[1757015336339,26.0,202.97,202.96,13.59559401]
[1757015336543,26.71,202.97,202.94,0.12]
[1757015336754,26.71,202.97,202.93,14.81810773]
[1757015337058,0.71,202.96,202.93,53.43810773]
[1757015337222,0.71,202.95,202.93,38.62]
[1757015337423,5.30644309,202.94,202.93,38.62]
[1757015337849,5.30644309,202.94,202.93,52.21559401]
[1757015340451,4.59644309,202.94,202.93,52.21559401]
[1757015342037,5.30644309,202.94,202.93,38.6]
[1757015342222,5.30644309,202.94,202.92,0.12]
[1757015342426,4.59644309,202.93,202.92,0.12]
[1757015345842,9.90288618,202.93,202.92,0.12]
[1757015346044,9.90288618,202.93,202.91,38.58]
[1757015346241,9.90288618,202.92,202.9,13.71559401]
[1757015346437,4.59644309,202.91,202.9,13.71559401]
[1757015347244,9.90288618,202.91,202.9,13.71559401]
[1757015347764,5.30644309,202.91,202.9,13.71559401]
[1757015347977,4.59644309,202.91,202.9,13.71559401]
[1757015353646,9.52473642,202.91,202.9,13.71559401]
[1757015355338,14.83117951,202.91,202.9,13.71559401]
[1757015356859,14.12117951,202.91,202.9,13.71559401]
[1757015357056,4.59644309,202.91,202.9,13.71559401]
[1757015357263,4.59644309,202.91,202.9,14.40559401]
[1757015357465,4.92783041,202.93,202.9,14.40559401]
[1757015357650,4.92783041,202.93,202.92,13.59559401]
[1757015358364,5.597322,202.95,202.92,13.59559401]
[1757015358538,31.597322,202.95,202.92,13.59559401]
[1757015358738,31.597322,202.95,202.93,38.5]
[1757015358939,4.59644309,202.94,202.93,52.09559401]
[1757015360180,9.52400788,202.94,202.93,52.09559401]
[1757015360762,4.59644309,202.94,202.93,52.95775558]
[1757015361074,0.03,202.95,202.94,13.73775558]
[1757015361277,4.62644309,202.95,202.94,52.09559401]
[1757015361780,5.29644309,202.95,202.94,52.09559401]
[1757015362263,10.22376509,202.95,202.94,52.09559401]
[1757015362985,4.62644309,202.95,202.94,52.09559401]
[1757015363481,0.03,202.95,202.94,52.09559401]
[1757015363659,4.62644309,202.95,202.94,52.09559401]
[1757015363864,0.03,202.95,202.94,52.09559401]
[1757015364063,4.62644309,202.95,202.94,52.09559401]
[1757015366268,4.62644309,202.95,202.94,52.81559401]
[1757015366580,4.62644309,202.95,202.94,52.09559401]
[1757015367378,0.03,202.95,202.94,53.43051205]
[1757015367580,0.03,202.95,202.94,58.02695514]
[1757015367779,0.03,202.95,202.94,24.14339823]
[1757015367981,0.03,202.95,202.94,19.54695514]
[1757015368784,4.62644309,202.95,202.94,18.1920371]
[1757015368972,4.62644309,202.95,202.94,52.05559401]
[1757015368973,0.03,202.95,202.94,52.05559401]
[1757015369175,4.62644309,202.95,202.94,52.05559401]
[1757015370883,9.55376509,202.95,202.94,52.05559401]
[1757015373100,10.22376509,202.95,202.94,13.59559401]
[1757015373278,10.22376509,202.95,202.91,13.59559401]
[1757015373478,4.59644309,202.92,202.91,13.59559401]
[1757015373677,5.26644309,202.92,202.91,52.05559401]
[1757015373983,4.59644309,202.92,202.91,52.05559401]
[1757015374593,5.26644309,202.92,202.91,52.05559401]
[1757015374973,9.52449355,202.92,202.91,52.05559401]
[1757015375896,4.59644309,202.92,202.91,52.05559401]
[1757015379399,4.92783859,202.93,202.91,52.05559401]
[1757015379595,0.67,202.94,202.91,52.05559401]
[1757015379596,5.59758431,202.94,202.91,52.05559401]
[1757015379796,4.59644309,202.92,202.91,52.05559401]
[1757015380307,4.59644309,202.92,202.91,52.17559401]
[1757015382094,0.03,202.95,202.91,53.03775558]
[1757015382303,4.59644309,202.93,202.92,14.45775558]
[1757015382489,4.59644309,202.93,202.92,52.83775558]
[1757015382999,4.59644309,202.93,202.92,56.71419867]
[1757015383180,4.59644309,202.93,202.92,51.97559401]
[1757015388411,4.59644309,202.93,202.92,13.59559401]
[1757015388703,4.59644309,202.93,202.92,51.95559401]
[1757015389611,2.94398538,202.93,202.92,51.95559401]
[1757015389989,2.94398538,202.93,202.92,13.59559401]
[1757015390189,2.94398538,202.93,202.92,51.93559401]
[1757015395190,0.73,202.95,202.92,13.59559401]
[1757015395390,2.94398538,202.93,202.92,13.59559401]
[1757015395815,3.64398538,202.93,202.92,51.93559401]
[1757015397010,3.64398538,202.93,202.92,13.59559401]
[1757015397395,5.62780761,202.93,202.92,13.59559401]
[1757015397716,8.57179299,202.93,202.92,13.59559401]
[1757015398793,8.57179299,202.93,202.91,0.12]
[1757015399094,2.94398538,202.92,202.91,13.71559401]
[1757015399293,8.57203584,202.92,202.91,13.71559401]
[1757015400314,0.03,202.93,202.91,0.77]
[1757015400516,0.03,202.93,202.91,0.12]
[1757015400809,0.03,202.93,202.92,25.85559401]
[1757015401016,0.03,202.93,202.92,26.64775558]
[1757015401233,0.03,202.93,202.92,29.59174096]
[1757015401516,0.03,202.93,202.92,36.4952464]
[1757015402093,0.03,202.93,202.92,24.2352464]
[1757015402297,0.03,202.93,202.92,54.76321056]
[1757015402614,2.97398538,202.93,202.92,52.13775558]
[1757015403220,0.03,202.93,202.92,52.78775558]
[1757015403516,2.97398538,202.93,202.92,52.13775558]
[1757015403705,3.67398538,202.93,202.92,13.59559401]
[1757015404514,0.03,202.93,202.92,13.59559401]
[1757015404706,2.97398538,202.93,202.92,13.59559401]
[1757015404906,3.67398538,202.93,202.92,13.59559401]
[1757015405312,3.67398538,202.93,202.91,0.12]
[1757015405513,19.64797736,202.92,202.91,13.71559401]
[1757015405710,20.34797736,202.92,202.9,0.12]
[1757015405897,26.0,202.89,202.88,0.12]
[1757015406100,26.0,202.87,202.86,2.09633341]
[1757015406303,26.0,202.87,202.83,0.12]
[1757015406304,28.94398538,202.87,202.83,0.12]
[1757015406518,3.64398538,202.86,202.83,0.12]
[1757015406717,0.7,202.87,202.84,13.71559401]
[1757015406931,2.94398538,202.85,202.84,52.21559401]
[1757015407814,8.57373642,202.85,202.84,0.12]
[1757015411115,2.94398538,202.85,202.84,0.12]
[1757015411728,7.87373642,202.85,202.84,0.12]
[1757015412033,8.57373642,202.85,202.84,0.12]
[1757015416227,5.62975104,202.85,202.84,0.12]
[1757015416425,7.87373642,202.85,202.84,0.12]
[1757015416722,8.57373642,202.85,202.84,0.12]
[1757015417532,2.94398538,202.85,202.84,0.12]
[1757015418409,4.92887089,202.89,202.85,13.59559401]
[1757015418624,2.94398538,202.86,202.85,14.24559401]
[1757015419030,2.94398538,202.86,202.85,13.59559401]
[1757015419229,4.92859446,202.9,202.86,0.14216157]
[1757015419527,2.94398538,202.87,202.86,14.38775558]
[1757015420115,2.94398538,202.87,202.86,14.88070638]
[1757015420631,2.94398538,202.88,202.87,13.73775558]
[1757015420813,4.95803486,202.93,202.87,13.73775558]
[1757015420814,4.95803486,202.93,202.87,52.88775558]
[1757015421014,2.94398538,202.89,202.87,52.88775558]
[1757015421416,2.94398538,202.88,202.87,52.88775558]
[1757015421612,2.94398538,202.88,202.87,52.09559401]
[1757015421840,3.64398538,202.88,202.87,13.59559401]
[1757015422145,8.57300746,202.88,202.84,13.71559401]
[1757015422450,2.94398538,202.85,202.84,0.12]
[1757015422737,28.94398538,202.85,202.84,0.12]
[1757015423029,29.64398538,202.85,202.84,0.12]
[1757015423611,26.0,202.87,202.83,0.12]
[1757015423816,0.7,202.88,202.83,0.12]
[1757015423817,2.94398538,202.84,202.83,0.12]
[1757015425718,5.62947402,202.87,202.83,0.12]
[1757015425922,2.94398538,202.84,202.83,0.12]
[1757015427129,5.62947402,202.87,202.83,0.12]
[1757015427336,29.64398538,202.84,202.83,0.12]
[1757015427537,4.93023714,202.83,202.81,0.12]
[1757015427742,2.94398538,202.82,202.81,0.12]
[1757015427928,3.64398538,202.82,202.81,0.12]
[1757015428726,2.94398538,202.82,202.81,13.71559401]
[1757015430234,2.94398538,202.82,202.81,52.21559401]
[1757015430555,4.92877914,202.89,202.82,13.59559401]
[1757015430722,2.94398538,202.83,202.82,13.59559401]
[1757015431259,2.94398538,202.83,202.81,0.12]
[1757015431425,0.7,202.85,202.83,13.59559401]
[1757015431627,8.57397946,202.84,202.83,13.59559401]
[1757015432133,7.87397946,202.84,202.83,13.59559401]
[1757015432938,2.94398538,202.84,202.83,13.59559401]
[1757015433241,8.57399663,202.84,202.81,13.71559401]
[1757015433546,2.94398538,202.82,202.81,13.71559401]
[1757015433938,3.64398538,202.82,202.81,0.12]
[1757015434150,3.64398538,202.82,202.81,13.71559401]
[1757015434838,8.5744656,202.82,202.81,13.71559401]
[1757015438043,0.03,202.83,202.81,13.71559401]
[1757015438254,2.94398538,202.82,202.81,14.36559401]
[1757015439433,2.94398538,202.82,202.81,13.71559401]
[1757015439835,6.58797076,202.82,202.81,0.12]
[1757015440036,15.4199269,202.82,202.81,0.12]
[1757015440248,8.5744656,202.82,202.81,0.12]
[1757015440852,0.03,202.83,202.81,0.12]
[1757015441149,2.94398538,202.82,202.81,52.17559401]
[1757015443542,0.03,202.83,202.82,13.59559401]
[1757015443543,2.97398538,202.83,202.82,13.59559401]
[1757015444844,0.03,202.83,202.82,13.59559401]
[1757015445049,2.97398538,202.83,202.82,13.59559401]
[1757015446056,2.97398538,202.83,202.81,0.12]
[1757015446255,3.64398538,202.82,202.81,0.12]
[1757015446754,8.5744656,202.82,202.81,0.12]
[1757015447335,0.7,202.82,202.81,0.12]
[1757015447575,2.94398538,202.82,202.81,0.12]
[1757015448064,3.62398538,202.82,202.81,0.12]
[1757015449644,8.5544656,202.82,202.81,0.12]
[1757015450059,7.8744656,202.82,202.81,0.12]
[1757015450639,2.94398538,202.82,202.81,0.12]
[1757015450844,0.03,202.83,202.82,13.59559401]
[1757015451048,2.97398538,202.83,202.82,52.01559401]
[1757015451552,4.63421907,202.83,202.82,52.01559401]
[1757015452664,0.03,202.83,202.82,52.01559401]
[1757015452863,4.63421907,202.83,202.82,52.01559401]
[1757015453464,0.03,202.83,202.82,52.85775558]
[1757015453848,4.63421907,202.83,202.82,15.71457735]
[1757015454047,4.63421907,202.83,202.81,0.12]
[1757015454048,10.24445621,202.83,202.81,0.12]
[1757015454269,5.28421907,202.82,202.81,0.12]
[1757015455171,10.21469929,202.82,202.81,0.12]
[1757015458176,4.96029847,202.83,202.81,0.12]
[1757015458475,4.60421907,202.82,202.81,0.12]